[Event "Titled Tuesday Blitz May 9 Late 2023"]
[White "Mekhitarian, Krikor Sevag"]
[Black "Ezat, Mohamed"]
[WhiteFideId "2107660"]
[BlackFideId "10600906"]
[WhiteElo "2604"]
[BlackElo "2386"]
[Result "1-0"]
[Round "10"]
[TimeControl "180+2"]
[Date "2023.05.09"]
[WhiteClock "0:00:11"]
[BlackClock "0:00:13"]

1. Nf3 {[%clk 0:03:00]}  Nf6 {[%clk 0:02:53]} 2. c4 {[%clk 0:03:00]}  g6 {[%clk 0:02:53]} 3. Nc3 {[%clk 0:03:00]}  Bg7 {[%clk 0:02:54]} 4. e4 {[%clk 0:03:00]}  O-O {[%clk 0:02:54]} 5. d4 {[%clk 0:03:01]}  d6 {[%clk 0:02:54]} 6. h3 {[%clk 0:03:01]}  c5 {[%clk 0:02:54]} 7. d5 {[%clk 0:03:01]}  b5 {[%clk 0:02:54]} 8. cxb5 {[%clk 0:03:01]}  a6 {[%clk 0:02:55]} 9. a4 {[%clk 0:02:55]}  Bb7 {[%clk 0:02:48]} 10. Ra3 {[%clk 0:02:43]}  e6 {[%clk 0:02:47]} 11. dxe6 {[%clk 0:02:41]}  fxe6 {[%clk 0:02:48]} 12. Bc4 {[%clk 0:02:39]}  d5 {[%clk 0:02:46]} 13. Ba2 {[%clk 0:02:39]}  Kh8 {[%clk 0:02:39]} 14. O-O {[%clk 0:02:37]}  d4 {[%clk 0:02:37]} 15. Nb1 {[%clk 0:01:55]}  Nxe4 {[%clk 0:02:06]} 16. Bxe6 {[%clk 0:01:49]}  Nd7 {[%clk 0:01:58]} 17. Re1 {[%clk 0:00:59]}  axb5 {[%clk 0:01:43]} 18. axb5 {[%clk 0:00:57]}  Nb6 {[%clk 0:01:43]} 19. Nbd2 {[%clk 0:00:40]}  Rxa3 {[%clk 0:01:27]} 20. bxa3 {[%clk 0:00:39]}  Nc3 {[%clk 0:01:12]} 21. Qb3 {[%clk 0:00:37]}  d3 {[%clk 0:01:02]} 22. Bb2 {[%clk 0:00:34]}  Ne2+ {[%clk 0:00:54]} 23. Kf1 {[%clk 0:00:23]}  Bxb2 {[%clk 0:00:27]} 24. Qxb2+ {[%clk 0:00:23]}  Qf6 {[%clk 0:00:27]} 25. Qxf6+ {[%clk 0:00:19]}  Rxf6 {[%clk 0:00:27]} 26. Bb3 {[%clk 0:00:17]}  Bxf3 {[%clk 0:00:27]} 27. gxf3 {[%clk 0:00:15]}  Nd4 {[%clk 0:00:25]} 28. Ba2 {[%clk 0:00:06]}  Nxf3 {[%clk 0:00:23]} 29. Nxf3 {[%clk 0:00:02]}  Rxf3 {[%clk 0:00:22]} 30. Re6 {[%clk 0:00:02]}  Na4 {[%clk 0:00:15]} 31. b6 {[%clk 0:00:02]}  d2 {[%clk 0:00:12]} 32. Rd6 {[%clk 0:00:03]}  Nxb6 {[%clk 0:00:10]} 33. Rxd2 {[%clk 0:00:02]}  Rxa3 {[%clk 0:00:10]} 34. Bb1 {[%clk 0:00:02]}  Ra1 {[%clk 0:00:09]} 35. Rb2 {[%clk 0:00:02]}  Nc4 {[%clk 0:00:09]} 36. Rb8+ {[%clk 0:00:01]}  Kg7 {[%clk 0:00:09]} 37. Kg2 {[%clk 0:00:02]}  Nd2 {[%clk 0:00:08]} 38. Bd3 {[%clk 0:00:02]}  c4 {[%clk 0:00:08]} 39. Be2 {[%clk 0:00:02]}  Re1 {[%clk 0:00:08]} 40. Bg4 {[%clk 0:00:01]}  h5 {[%clk 0:00:07]} 41. Bd7 {[%clk 0:00:01]}  c3 {[%clk 0:00:07]} 42. Rc8 {[%clk 0:00:02]}  Rc1 {[%clk 0:00:06]} 43. Ba4 {[%clk 0:00:02]}  Ne4 {[%clk 0:00:07]} 44. Rc7+ {[%clk 0:00:02]}  Kh6 {[%clk 0:00:05]} 45. Be8 {[%clk 0:00:02]}  Nd6 {[%clk 0:00:05]} 46. Ba4 {[%clk 0:00:02]}  Nf5 {[%clk 0:00:05]} 47. Rc6 {[%clk 0:00:01]}  Nd4 {[%clk 0:00:05]} 48. Rd6 {[%clk 0:00:02]}  c2 {[%clk 0:00:05]} 49. Rxd4 {[%clk 0:00:02]}  Rg1+ {[%clk 0:00:05]} 50. Kxg1 {[%clk 0:00:03]}  c1=Q+ {[%clk 0:00:06]} 51. Bd1 {[%clk 0:00:03]}  Qc3 {[%clk 0:00:05]} 52. Rd7 {[%clk 0:00:02]}  Qe1+ {[%clk 0:00:05]} 53. Kg2 {[%clk 0:00:02]}  Qe4+ {[%clk 0:00:06]} 54. Bf3 {[%clk 0:00:03]}  Qe6 {[%clk 0:00:05]} 55. Rd1 {[%clk 0:00:04]}  Qf5 {[%clk 0:00:05]} 56. Rd5 {[%clk 0:00:03]}  Qf6 {[%clk 0:00:05]} 57. Rd1 {[%clk 0:00:03]}  Qf4 {[%clk 0:00:05]} 58. Rd5 {[%clk 0:00:03]}  g5 {[%clk 0:00:05]} 59. Rd1 {[%clk 0:00:02]}  g4 {[%clk 0:00:04]} 60. hxg4 {[%clk 0:00:03]}  hxg4 {[%clk 0:00:04]} 61. Bb7 {[%clk 0:00:02]}  Kg7 {[%clk 0:00:05]} 62. Rd7+ {[%clk 0:00:02]}  Kf8 {[%clk 0:00:04]} 63. Rd1 {[%clk 0:00:03]}  Qf7 {[%clk 0:00:03]} 64. Bd5 {[%clk 0:00:02]}  Qf4 {[%clk 0:00:04]} 65. Rd3 {[%clk 0:00:02]}  Kg7 {[%clk 0:00:04]} 66. Rg3 {[%clk 0:00:02]}  Qd4 {[%clk 0:00:03]} 67. Bc6 {[%clk 0:00:02]}  Kf6 {[%clk 0:00:04]} 68. Bb7 {[%clk 0:00:02]}  Kg5 {[%clk 0:00:04]} 69. Ba8 {[%clk 0:00:02]}  Kh4 {[%clk 0:00:04]} 70. Bc6 {[%clk 0:00:02]}  Qb6 {[%clk 0:00:05]} 71. Bd5 {[%clk 0:00:02]}  Qa5 {[%clk 0:00:05]} 72. Be4 {[%clk 0:00:02]}  Qe5 {[%clk 0:00:05]} 73. Bc6 {[%clk 0:00:02]}  Qf4 {[%clk 0:00:05]} 74. Bd5 {[%clk 0:00:02]}  Kh5 {[%clk 0:00:06]} 75. Bc6 {[%clk 0:00:02]}  Kg5 {[%clk 0:00:05]} 76. Bd5 {[%clk 0:00:03]}  Kf5 {[%clk 0:00:05]} 77. Bc6 {[%clk 0:00:03]}  Qc4 {[%clk 0:00:05]} 78. Bd7+ {[%clk 0:00:03]}  Kf6 {[%clk 0:00:05]} 79. Bxg4 {[%clk 0:00:04]}  Qd5+ {[%clk 0:00:05]} 80. Bf3 {[%clk 0:00:04]}  Qe5 {[%clk 0:00:05]} 81. Rg4 {[%clk 0:00:05]}  Qf5 {[%clk 0:00:05]} 82. Rg3 {[%clk 0:00:04]}  Qb1 {[%clk 0:00:05]} 83. Bd5 {[%clk 0:00:04]}  Qd1 {[%clk 0:00:05]} 84. Be4 {[%clk 0:00:02]}  Qe1 {[%clk 0:00:05]} 85. f3 {[%clk 0:00:02]}  Ke5 {[%clk 0:00:05]} 86. Rg4 {[%clk 0:00:02]}  Kd4 {[%clk 0:00:06]} 87. Bf5+ {[%clk 0:00:02]}  Ke3 {[%clk 0:00:06]} 88. Re4+ {[%clk 0:00:03]}  Kd2 {[%clk 0:00:06]} 89. Rxe1 {[%clk 0:00:03]}  Kxe1 {[%clk 0:00:07]} 90. Kg3 {[%clk 0:00:03]}  Ke2 {[%clk 0:00:08]} 91. Kf4 {[%clk 0:00:04]}  Kf2 {[%clk 0:00:07]} 92. Be4 {[%clk 0:00:05]}  Kg2 {[%clk 0:00:08]} 93. Kg4 {[%clk 0:00:05]}  Kh2 {[%clk 0:00:08]} 94. f4 {[%clk 0:00:06]}  Kg1 {[%clk 0:00:08]} 95. f5 {[%clk 0:00:07]}  Kh2 {[%clk 0:00:09]} 96. f6 {[%clk 0:00:08]}  Kg1 {[%clk 0:00:10]} 97. f7 {[%clk 0:00:09]}  Kh2 {[%clk 0:00:11]} 98. Bg6 {[%clk 0:00:09]}  Kg1 {[%clk 0:00:12]} 99. f8=Q {[%clk 0:00:09]}  Kh2 {[%clk 0:00:12]} 100. Qf3 {[%clk 0:00:09]}  Kg1 {[%clk 0:00:13]} 101. Qe2 {[%clk 0:00:09]}  Kh1 {[%clk 0:00:13]} 102. Kg3 {[%clk 0:00:10]}  Kg1 {[%clk 0:00:13]} 103. Qe1# {[%clk 0:00:11]} 1-0


[Site "https://www.chess.com"]

[Event "Titled Tuesday Blitz May 9 Late 2023"]
[White "Prohaszka, Peter"]
[Black "Omranalhosani21"]
[WhiteFideId "726265"]
[WhiteElo "2626"]
[BlackElo "2617"]
[Result "0-1"]
[Round "10"]
[TimeControl "180+2"]
[Date "2023.05.09"]
[WhiteClock "0:00:00"]
[BlackClock "0:00:07"]

1. d4 {[%clk 0:02:57]}  d5 {[%clk 0:02:52]} 2. c3 {[%clk 0:02:54]}  c5 {[%clk 0:02:50]} 3. dxc5 {[%clk 0:02:54]}  e6 {[%clk 0:02:41]} 4. e4 {[%clk 0:02:54]}  Bxc5 {[%clk 0:02:37]} 5. exd5 {[%clk 0:02:53]}  Nf6 {[%clk 0:02:37]} 6. Bb5+ {[%clk 0:02:53]}  Bd7 {[%clk 0:02:31]} 7. Bxd7+ {[%clk 0:02:51]}  Qxd7 {[%clk 0:02:30]} 8. Nf3 {[%clk 0:02:10]}  Qxd5 {[%clk 0:02:12]} 9. O-O {[%clk 0:02:06]}  O-O {[%clk 0:02:12]} 10. Bg5 {[%clk 0:01:44]}  Ne4 {[%clk 0:02:10]} 11. Qxd5 {[%clk 0:01:42]}  exd5 {[%clk 0:02:11]} 12. Nbd2 {[%clk 0:01:35]}  Nc6 {[%clk 0:02:08]} 13. Nb3 {[%clk 0:01:31]}  Bb6 {[%clk 0:02:01]} 14. a4 {[%clk 0:01:19]}  a6 {[%clk 0:01:39]} 15. Rad1 {[%clk 0:01:17]}  f6 {[%clk 0:01:32]} 16. Be3 {[%clk 0:01:04]}  Bxe3 {[%clk 0:01:28]} 17. fxe3 {[%clk 0:01:05]}  Rad8 {[%clk 0:01:26]} 18. Nfd4 {[%clk 0:01:02]}  Rfe8 {[%clk 0:00:51]} 19. Rfe1 {[%clk 0:00:55]}  Ne5 {[%clk 0:00:49]} 20. Re2 {[%clk 0:00:36]}  g6 {[%clk 0:00:34]} 21. Nc1 {[%clk 0:00:33]}  Nc5 {[%clk 0:00:28]} 22. a5 {[%clk 0:00:24]}  Nc4 {[%clk 0:00:25]} 23. Rde1 {[%clk 0:00:21]}  Re4 {[%clk 0:00:22]} 24. Ncb3 {[%clk 0:00:20]}  Nd3 {[%clk 0:00:16]} 25. Rb1 {[%clk 0:00:19]}  Rde8 {[%clk 0:00:13]} 26. Nd2 {[%clk 0:00:14]}  Rxe3 {[%clk 0:00:11]} 27. Rxe3 {[%clk 0:00:11]}  Rxe3 {[%clk 0:00:12]} 28. Nf1 {[%clk 0:00:05]}  Re5 {[%clk 0:00:08]} 29. b4 {[%clk 0:00:04]}  Nf4 {[%clk 0:00:08]} 30. b5 {[%clk 0:00:03]}  axb5 {[%clk 0:00:07]} 31. Rxb5 {[%clk 0:00:03]}  Re1 {[%clk 0:00:07]} 32. Kf2 {[%clk 0:00:04]}  Nd3+ {[%clk 0:00:07]} 33. Kg3 {[%clk 0:00:01]}  Rxf1 {[%clk 0:00:07]} 34. Rxb7 {[%clk 0:00:00]}  Nxa5 {[%clk 0:00:07]} 0-1


[Site "https://www.chess.com"]

[Event "Titled Tuesday Blitz May 9 Late 2023"]
[White "Vakhlamov, Igor L."]
[Black "Tologon tegin, Semetei"]
[WhiteFideId "24126748"]
[BlackFideId "13800574"]
[WhiteElo "2407"]
[BlackElo "2247"]
[Result "1/2-1/2"]
[Round "10"]
[TimeControl "180+2"]
[Date "2023.05.09"]
[WhiteClock "0:01:10"]
[BlackClock "0:00:28"]

1. e4 {[%clk 0:03:00]}  c5 {[%clk 0:02:58]} 2. Nf3 {[%clk 0:03:01]}  d6 {[%clk 0:02:59]} 3. Nc3 {[%clk 0:03:01]}  Nf6 {[%clk 0:02:57]} 4. d4 {[%clk 0:03:02]}  cxd4 {[%clk 0:02:57]} 5. Qxd4 {[%clk 0:03:03]}  a6 {[%clk 0:02:56]} 6. e5 {[%clk 0:03:03]}  Nc6 {[%clk 0:02:55]} 7. Qa4 {[%clk 0:03:03]}  dxe5 {[%clk 0:02:54]} 8. Nxe5 {[%clk 0:03:04]}  Bd7 {[%clk 0:02:53]} 9. Nxd7 {[%clk 0:03:05]}  Qxd7 {[%clk 0:02:53]} 10. Be3 {[%clk 0:03:05]}  e6 {[%clk 0:02:52]} 11. Rd1 {[%clk 0:03:05]}  Qc7 {[%clk 0:02:52]} 12. g3 {[%clk 0:03:05]}  Be7 {[%clk 0:02:49]} 13. Bg2 {[%clk 0:03:05]}  O-O {[%clk 0:02:46]} 14. O-O {[%clk 0:03:06]}  Rfd8 {[%clk 0:02:18]} 15. Bf4 {[%clk 0:02:56]}  Bd6 {[%clk 0:02:13]} 16. Bg5 {[%clk 0:02:55]}  Be5 {[%clk 0:02:06]} 17. Bxc6 {[%clk 0:02:52]}  Qxc6 {[%clk 0:02:03]} 18. Qxc6 {[%clk 0:02:52]}  bxc6 {[%clk 0:02:04]} 19. Na4 {[%clk 0:02:51]}  h6 {[%clk 0:01:59]} 20. Bxf6 {[%clk 0:02:46]}  Bxf6 {[%clk 0:01:58]} 21. Kg2 {[%clk 0:02:39]}  Rab8 {[%clk 0:01:54]} 22. b3 {[%clk 0:02:38]}  Bd4 {[%clk 0:01:54]} 23. Kf3 {[%clk 0:02:34]}  f5 {[%clk 0:01:53]} 24. Ke2 {[%clk 0:02:27]}  Kf7 {[%clk 0:01:52]} 25. Rd3 {[%clk 0:02:21]}  e5 {[%clk 0:01:49]} 26. Rfd1 {[%clk 0:02:21]}  Ke7 {[%clk 0:01:46]} 27. c3 {[%clk 0:02:14]}  Ba7 {[%clk 0:01:46]} 28. Rxd8 {[%clk 0:02:09]}  Rxd8 {[%clk 0:01:47]} 29. Rxd8 {[%clk 0:02:08]}  Kxd8 {[%clk 0:01:47]} 30. f3 {[%clk 0:02:09]}  Ke7 {[%clk 0:01:44]} 31. Kd3 {[%clk 0:02:08]}  Kd6 {[%clk 0:01:42]} 32. Nb2 {[%clk 0:02:08]}  Kd5 {[%clk 0:01:39]} 33. c4+ {[%clk 0:02:08]}  Ke6 {[%clk 0:01:39]} 34. b4 {[%clk 0:02:04]}  Bg1 {[%clk 0:01:37]} 35. h3 {[%clk 0:02:04]}  h5 {[%clk 0:01:33]} 36. Nd1 {[%clk 0:02:02]}  g5 {[%clk 0:01:22]} 37. g4 {[%clk 0:02:00]}  e4+ {[%clk 0:01:16]} 38. fxe4 {[%clk 0:02:00]}  fxg4 {[%clk 0:01:15]} 39. hxg4 {[%clk 0:02:00]}  h4 {[%clk 0:01:15]} 40. Ke2 {[%clk 0:01:56]}  Ke5 {[%clk 0:01:12]} 41. Kf3 {[%clk 0:01:51]}  Bd4 {[%clk 0:01:06]} 42. a4 {[%clk 0:01:49]}  h3 {[%clk 0:00:59]} 43. b5 {[%clk 0:01:18]}  axb5 {[%clk 0:00:55]} 44. cxb5 {[%clk 0:01:19]}  cxb5 {[%clk 0:00:54]} 45. axb5 {[%clk 0:01:20]}  h2 {[%clk 0:00:41]} 46. Kg2 {[%clk 0:01:21]}  Kxe4 {[%clk 0:00:41]} 47. Kxh2 {[%clk 0:01:18]}  Kf3 {[%clk 0:00:38]} 48. b6 {[%clk 0:01:05]}  Ke2 {[%clk 0:00:38]} 49. b7 {[%clk 0:01:04]}  Be5+ {[%clk 0:00:38]} 50. Kg2 {[%clk 0:01:05]}  Kxd1 {[%clk 0:00:37]} 51. Kf3 {[%clk 0:01:05]}  Kd2 {[%clk 0:00:32]} 52. Ke4 {[%clk 0:01:06]}  Bf4 {[%clk 0:00:31]} 53. Kf5 {[%clk 0:01:07]}  Ke2 {[%clk 0:00:31]} 54. b8=Q {[%clk 0:01:08]}  Bxb8 {[%clk 0:00:31]} 55. Kxg5 {[%clk 0:01:09]}  Ke3 {[%clk 0:00:31]} 56. Kf5 {[%clk 0:01:09]}  Kd4 {[%clk 0:00:31]} 57. g5 {[%clk 0:01:09]}  Be5 {[%clk 0:00:30]} 58. Ke6 {[%clk 0:01:09]}  Ke4 {[%clk 0:00:30]} 59. g6 {[%clk 0:01:10]}  Kf4 {[%clk 0:00:30]} 60. Kf7 {[%clk 0:01:10]}  Kf5 {[%clk 0:00:29]} 61. g7 {[%clk 0:01:10]}  Bxg7 {[%clk 0:00:28]} 1/2-1/2


[Site "https://www.chess.com"]

[Event "Titled Tuesday Blitz May 9 Late 2023"]
[White "Gritsenko, Nikolai"]
[Black "Seletsky, Grigory"]
[WhiteFideId "14112493"]
[BlackFideId "14112191"]
[WhiteElo "2389"]
[BlackElo "2491"]
[Result "1-0"]
[Round "10"]
[TimeControl "180+2"]
[Date "2023.05.09"]
[WhiteClock "0:00:11"]
[BlackClock "0:00:00"]

1. d4 {[%clk 0:03:00]}  d6 {[%clk 0:02:59]} 2. Nf3 {[%clk 0:03:00]}  Nf6 {[%clk 0:02:58]} 3. Nc3 {[%clk 0:02:59]}  Nbd7 {[%clk 0:02:59]} 4. e4 {[%clk 0:02:59]}  c6 {[%clk 0:02:51]} 5. e5 {[%clk 0:02:57]}  Nd5 {[%clk 0:02:25]} 6. Nxd5 {[%clk 0:02:57]}  cxd5 {[%clk 0:02:20]} 7. exd6 {[%clk 0:02:57]}  e6 {[%clk 0:02:18]} 8. Bf4 {[%clk 0:02:48]}  Qb6 {[%clk 0:02:17]} 9. Qc1 {[%clk 0:02:47]}  Bxd6 {[%clk 0:02:17]} 10. Bxd6 {[%clk 0:02:46]}  Qxd6 {[%clk 0:02:16]} 11. Bd3 {[%clk 0:02:45]}  O-O {[%clk 0:02:05]} 12. O-O {[%clk 0:02:44]}  Rb8 {[%clk 0:01:59]} 13. a4 {[%clk 0:02:42]}  b6 {[%clk 0:01:52]} 14. Qg5 {[%clk 0:02:31]}  h6 {[%clk 0:01:46]} 15. Qh4 {[%clk 0:02:25]}  Nf6 {[%clk 0:01:44]} 16. Rfe1 {[%clk 0:02:20]}  Bd7 {[%clk 0:01:42]} 17. Ne5 {[%clk 0:02:15]}  Rfc8 {[%clk 0:01:39]} 18. Re3 {[%clk 0:02:09]}  Be8 {[%clk 0:01:39]} 19. Rg3 {[%clk 0:02:07]}  Kf8 {[%clk 0:01:40]} 20. Rf3 {[%clk 0:02:02]}  Qd8 {[%clk 0:01:32]} 21. h3 {[%clk 0:01:50]}  Ne4 {[%clk 0:01:27]} 22. Qf4 {[%clk 0:01:45]}  Qg5 {[%clk 0:01:23]} 23. Nd7+ {[%clk 0:01:29]}  Ke7 {[%clk 0:01:13]} 24. Nxb8 {[%clk 0:01:28]}  Qxf4 {[%clk 0:01:12]} 25. Rxf4 {[%clk 0:01:28]}  Rxb8 {[%clk 0:01:10]} 26. Bxe4 {[%clk 0:01:27]}  g5 {[%clk 0:01:06]} 27. Rg4 {[%clk 0:01:20]}  dxe4 {[%clk 0:01:01]} 28. Rxe4 {[%clk 0:01:19]}  Rc8 {[%clk 0:01:01]} 29. c3 {[%clk 0:01:19]}  Bc6 {[%clk 0:01:01]} 30. Re5 {[%clk 0:01:14]}  Bd5 {[%clk 0:01:01]} 31. f3 {[%clk 0:01:13]}  Kd6 {[%clk 0:00:59]} 32. Kf2 {[%clk 0:01:11]}  Rc7 {[%clk 0:00:58]} 33. Re2 {[%clk 0:01:10]}  a6 {[%clk 0:00:42]} 34. h4 {[%clk 0:01:08]}  f6 {[%clk 0:00:39]} 35. hxg5 {[%clk 0:01:04]}  hxg5 {[%clk 0:00:38]} 36. Ree1 {[%clk 0:01:04]}  g4 {[%clk 0:00:28]} 37. Rh1 {[%clk 0:00:55]}  Rg7 {[%clk 0:00:25]} 38. Rh4 {[%clk 0:00:49]}  gxf3 {[%clk 0:00:20]} 39. gxf3 {[%clk 0:00:49]}  f5 {[%clk 0:00:21]} 40. Rh6 {[%clk 0:00:45]}  Rg8 {[%clk 0:00:19]} 41. Rah1 {[%clk 0:00:43]}  Rc8 {[%clk 0:00:12]} 42. Rh8 {[%clk 0:00:40]}  Rc4 {[%clk 0:00:12]} 43. Rb8 {[%clk 0:00:33]}  Kc7 {[%clk 0:00:11]} 44. Rhh8 {[%clk 0:00:32]}  Rxa4 {[%clk 0:00:11]} 45. Rhc8+ {[%clk 0:00:31]}  Kd7 {[%clk 0:00:11]} 46. Rh8 {[%clk 0:00:29]}  b5 {[%clk 0:00:10]} 47. Ke3 {[%clk 0:00:27]}  Ra2 {[%clk 0:00:09]} 48. Rh7+ {[%clk 0:00:23]}  Kc6 {[%clk 0:00:09]} 49. Rh2 {[%clk 0:00:22]}  a5 {[%clk 0:00:08]} 50. Kf4 {[%clk 0:00:21]}  a4 {[%clk 0:00:06]} 51. Kg3 {[%clk 0:00:19]}  a3 {[%clk 0:00:05]} 52. bxa3 {[%clk 0:00:18]}  Rxa3 {[%clk 0:00:06]} 53. Rc8+ {[%clk 0:00:17]}  Kb7 {[%clk 0:00:03]} 54. Rc5 {[%clk 0:00:17]}  Ka6 {[%clk 0:00:03]} 55. Rb2 {[%clk 0:00:16]}  Bc4 {[%clk 0:00:03]} 56. Kf4 {[%clk 0:00:16]}  Rxc3 {[%clk 0:00:03]} 57. Rbxb5 {[%clk 0:00:14]}  Rxf3+ {[%clk 0:00:01]} 58. Kxf3 {[%clk 0:00:13]}  Bxb5 {[%clk 0:00:00]} 59. Kf4 {[%clk 0:00:11]} 1-0


[Site "https://www.chess.com"]

[Event "Titled Tuesday Blitz May 9 Late 2023"]
[White "Mazurkiewicz, Michal"]
[Black "Rosen, Eric"]
[WhiteFideId "1124943"]
[BlackFideId "2032562"]
[WhiteElo "2054"]
[BlackElo "2331"]
[Result "0-1"]
[Round "10"]
[TimeControl "180+2"]
[Date "2023.05.09"]
[WhiteClock "0:00:02"]
[BlackClock "0:00:55"]

1. e4 {[%clk 0:03:00]}  e5 {[%clk 0:02:58]} 2. Nf3 {[%clk 0:03:00]}  Nf6 {[%clk 0:02:58]} 3. d3 {[%clk 0:03:00]}  Bc5 {[%clk 0:02:58]} 4. Nxe5 {[%clk 0:02:52]}  Nc6 {[%clk 0:02:57]} 5. Nf3 {[%clk 0:02:47]}  d5 {[%clk 0:02:55]} 6. exd5 {[%clk 0:02:43]}  Qxd5 {[%clk 0:02:49]} 7. Be2 {[%clk 0:02:42]}  Bg4 {[%clk 0:02:48]} 8. O-O {[%clk 0:02:37]}  O-O-O {[%clk 0:02:47]} 9. Nc3 {[%clk 0:02:34]}  Qh5 {[%clk 0:02:47]} 10. h3 {[%clk 0:02:27]}  Bxh3 {[%clk 0:02:15]} 11. gxh3 {[%clk 0:01:32]}  Qxh3 {[%clk 0:02:15]} 12. Nh2 {[%clk 0:01:16]}  h5 {[%clk 0:01:28]} 13. Bf4 {[%clk 0:01:04]}  g5 {[%clk 0:01:25]} 14. Bxg5 {[%clk 0:00:14]}  Rdg8 {[%clk 0:01:21]} 15. Qd2 {[%clk 0:00:08]}  Ng4 {[%clk 0:00:57]} 16. Nxg4 {[%clk 0:00:06]}  hxg4 {[%clk 0:00:56]} 17. Bxg4+ {[%clk 0:00:02]}  Qxg4# {[%clk 0:00:55]} 0-1


[Site "https://www.chess.com"]

[Event "Titled Tuesday Blitz May 9 Late 2023"]
[White "Manukyan, Sargis A."]
[Black "Przybylski, Wojciech"]
[WhiteFideId "13303970"]
[BlackFideId "1117599"]
[WhiteElo "2187"]
[BlackElo "2222"]
[Result "1-0"]
[Round "10"]
[TimeControl "180+2"]
[Date "2023.05.09"]
[WhiteClock "0:01:40"]
[BlackClock "0:00:02"]

1. d4 {[%clk 0:03:00]}  Nf6 {[%clk 0:02:57]} 2. c4 {[%clk 0:03:01]}  e6 {[%clk 0:02:55]} 3. Nc3 {[%clk 0:03:02]}  Bb4 {[%clk 0:02:54]} 4. a3 {[%clk 0:03:02]}  Be7 {[%clk 0:02:53]} 5. e4 {[%clk 0:03:01]}  d6 {[%clk 0:02:53]} 6. f4 {[%clk 0:03:01]}  e5 {[%clk 0:02:52]} 7. fxe5 {[%clk 0:02:54]}  dxe5 {[%clk 0:02:52]} 8. d5 {[%clk 0:02:54]}  Bc5 {[%clk 0:02:48]} 9. Nf3 {[%clk 0:02:54]}  Bg4 {[%clk 0:02:43]} 10. Be2 {[%clk 0:02:50]}  Bxf3 {[%clk 0:02:42]} 11. Bxf3 {[%clk 0:02:49]}  Nbd7 {[%clk 0:02:38]} 12. Qe2 {[%clk 0:02:49]}  O-O {[%clk 0:02:28]} 13. Be3 {[%clk 0:02:49]}  a5 {[%clk 0:02:28]} 14. b3 {[%clk 0:02:44]}  Bd4 {[%clk 0:02:24]} 15. Rc1 {[%clk 0:02:40]}  Re8 {[%clk 0:02:17]} 16. O-O {[%clk 0:02:39]}  Qe7 {[%clk 0:02:15]} 17. Nb5 {[%clk 0:02:37]}  Bxe3+ {[%clk 0:01:59]} 18. Qxe3 {[%clk 0:02:38]}  Nf8 {[%clk 0:01:50]} 19. c5 {[%clk 0:02:37]}  Ng6 {[%clk 0:01:50]} 20. d6 {[%clk 0:02:32]}  cxd6 {[%clk 0:01:48]} 21. cxd6 {[%clk 0:02:33]}  Qd7 {[%clk 0:01:47]} 22. Nc7 {[%clk 0:02:33]}  Qxd6 {[%clk 0:01:46]} 23. Nxa8 {[%clk 0:02:30]}  Rxa8 {[%clk 0:01:46]} 24. Qc5 {[%clk 0:02:30]}  Qe6 {[%clk 0:01:31]} 25. Qb5 {[%clk 0:02:19]}  Qe7 {[%clk 0:01:28]} 26. Rfd1 {[%clk 0:02:16]}  h5 {[%clk 0:01:19]} 27. Qc5 {[%clk 0:02:14]}  Qe6 {[%clk 0:01:18]} 28. Qb5 {[%clk 0:02:08]}  Qe7 {[%clk 0:01:17]} 29. a4 {[%clk 0:02:08]}  h4 {[%clk 0:01:03]} 30. Qb6 {[%clk 0:02:07]}  Ne8 {[%clk 0:00:43]} 31. Rd5 {[%clk 0:02:00]}  Nf4 {[%clk 0:00:41]} 32. Rxa5 {[%clk 0:01:59]}  Rd8 {[%clk 0:00:40]} 33. Rac5 {[%clk 0:01:52]}  Nd3 {[%clk 0:00:35]} 34. Rc8 {[%clk 0:01:48]}  Rxc8 {[%clk 0:00:19]} 35. Rxc8 {[%clk 0:01:46]}  Kh7 {[%clk 0:00:08]} 36. Qd8 {[%clk 0:01:43]}  Qb4 {[%clk 0:00:03]} 37. Qxh4+ {[%clk 0:01:42]}  Kg6 {[%clk 0:00:02]} 38. Bh5+ {[%clk 0:01:40]}  Kh6 {[%clk 0:00:02]} 39. Bxf7# {[%clk 0:01:40]} 1-0


[Site "https://www.chess.com"]

[Event "Titled Tuesday Blitz May 9 Late 2023"]
[White "Howell, David W L"]
[Black "Haszon, David"]
[WhiteFideId "410608"]
[BlackFideId "733610"]
[WhiteElo "2567"]
[BlackElo "2210"]
[Result "0-1"]
[Round "10"]
[TimeControl "180+2"]
[Date "2023.05.09"]
[WhiteClock "0:00:00"]
[BlackClock "0:00:32"]

1. e4 {[%clk 0:03:00]}  c5 {[%clk 0:02:53]} 2. Nf3 {[%clk 0:03:00]}  e6 {[%clk 0:02:52]} 3. d4 {[%clk 0:03:00]}  cxd4 {[%clk 0:02:52]} 4. Nxd4 {[%clk 0:03:01]}  Nf6 {[%clk 0:02:52]} 5. Nc3 {[%clk 0:02:59]}  Nc6 {[%clk 0:02:52]} 6. a3 {[%clk 0:02:52]}  Be7 {[%clk 0:02:45]} 7. Be2 {[%clk 0:02:50]}  O-O {[%clk 0:02:45]} 8. O-O {[%clk 0:02:50]}  a6 {[%clk 0:02:31]} 9. Nxc6 {[%clk 0:02:29]}  bxc6 {[%clk 0:02:21]} 10. e5 {[%clk 0:02:30]}  Nd5 {[%clk 0:02:20]} 11. Ne4 {[%clk 0:02:29]}  Qc7 {[%clk 0:02:11]} 12. f4 {[%clk 0:02:16]}  Qb6+ {[%clk 0:02:01]} 13. Kh1 {[%clk 0:02:11]}  Ne3 {[%clk 0:02:01]} 14. Bxe3 {[%clk 0:02:10]}  Qxe3 {[%clk 0:02:02]} 15. Bd3 {[%clk 0:01:40]}  f5 {[%clk 0:01:51]} 16. exf6 {[%clk 0:01:31]}  Bxf6 {[%clk 0:01:48]} 17. Nxf6+ {[%clk 0:01:21]}  Rxf6 {[%clk 0:01:34]} 18. Qh5 {[%clk 0:01:01]}  g6 {[%clk 0:01:32]} 19. Qe5 {[%clk 0:00:35]}  Qxe5 {[%clk 0:01:23]} 20. fxe5 {[%clk 0:00:36]}  Rxf1+ {[%clk 0:01:23]} 21. Rxf1 {[%clk 0:00:37]}  a5 {[%clk 0:01:20]} 22. Rd1 {[%clk 0:00:34]}  Kf7 {[%clk 0:01:13]} 23. Kg1 {[%clk 0:00:25]}  Ke7 {[%clk 0:01:12]} 24. Kf2 {[%clk 0:00:26]}  a4 {[%clk 0:01:03]} 25. Re1 {[%clk 0:00:20]}  Rb8 {[%clk 0:01:00]} 26. Rb1 {[%clk 0:00:21]}  c5 {[%clk 0:00:57]} 27. Ke3 {[%clk 0:00:19]}  Bb7 {[%clk 0:00:57]} 28. g3 {[%clk 0:00:19]}  Bd5 {[%clk 0:00:57]} 29. c4 {[%clk 0:00:18]}  Bc6 {[%clk 0:00:57]} 30. Bc2 {[%clk 0:00:18]}  d5 {[%clk 0:00:54]} 31. exd6+ {[%clk 0:00:18]}  Kxd6 {[%clk 0:00:54]} 32. b4 {[%clk 0:00:17]}  axb3 {[%clk 0:00:53]} 33. Rxb3 {[%clk 0:00:17]}  Rf8 {[%clk 0:00:50]} 34. Ke2 {[%clk 0:00:17]}  Ke5 {[%clk 0:00:47]} 35. Re3+ {[%clk 0:00:17]}  Kd4 {[%clk 0:00:45]} 36. Rxe6 {[%clk 0:00:15]}  Bf3+ {[%clk 0:00:45]} 37. Kd2 {[%clk 0:00:15]}  Kxc4 {[%clk 0:00:38]} 38. Re7 {[%clk 0:00:15]}  Bd5 {[%clk 0:00:35]} 39. Ke2 {[%clk 0:00:11]}  Kd4 {[%clk 0:00:33]} 40. Ke1 {[%clk 0:00:02]}  Bc4 {[%clk 0:00:32]} 41. Rd7+ {[%clk 0:00:00]}  Kc3 {[%clk 0:00:32]} 0-1


[Site "https://www.chess.com"]